fUSD/lending_fUSD_20241022
["ID","MTS","AMOUNT","RATE_DAILY","PERIOD"]
[340672391,1729641031684,-1925.17,0.00010617,2]
[340672392,1729641031694,-499.99,0.00010617,2]
[340672393,1729641031704,-250.84,0.00010619,2]
[340672394,1729641031713,-1925.17,0.0001062,2]
[340672395,1729641031723,-1925.17,0.00010623,2]
[340672396,1729641031733,-167.71,0.00010625,2]
[340672397,1729641031746,-1925.17,0.00010626,2]
[340672398,1729641031756,-1925.17,0.00010629,2]
[340672399,1729641031765,-1925.17,0.00010631,2]
[340672400,1729641031776,-1500.0,0.00010634,2]
[340672401,1729641031787,-1925.17,0.00010634,2]
[340672403,1729641031798,-1925.17,0.00010637,2]
[340672404,1729641031808,-1925.17,0.0001064,2]
[340672405,1729641031817,-1925.17,0.00010642,2]
[340672406,1729641031830,-1925.17,0.00010645,2]
[340672407,1729641031841,-150.0,0.00010648,2]
[340672408,1729641031850,-1925.17,0.00010648,2]
[340672409,1729641031859,-1925.17,0.00010651,2]
[340672410,1729641031868,-1925.17,0.00010654,2]
[340672411,1729641031878,-150.0,0.00010677,2]
[340672412,1729641031887,-150.0,0.00010685,2]
[340672413,1729641031897,-1500.0,0.00010687,2]
[340672414,1729641031907,-150.0,0.00010695,2]
[340672415,1729641031916,-150.0,0.00010697,2]
[340672416,1729641031925,-150.0,0.00010697,2]
[340672417,1729641031935,-692.3283,0.000107,2]
[340672418,1729641031945,-165.87,0.00010701,2]
[340672419,1729641031954,-150.0,0.00010704,2]
[340672420,1729641031964,-1500.0,0.00010705,2]
[340672421,1729641031973,-150.0,0.00010711,2]
[340672422,1729641031982,-150.0,0.00010714,2]
[340672423,1729641031992,-150.0,0.00010714,2]
[340672424,1729641032001,-150.0,0.00010716,2]
[340672425,1729641032010,-150.0,0.00010721,2]
[340672426,1729641032019,-150.0,0.00010724,2]
[340672427,1729641032029,-150.0,0.00010726,2]
[340672428,1729641032038,-150.0,0.0001073,2]
[340672429,1729641032047,-150.0,0.00010735,2]
[340672430,1729641032057,-1500.0,0.00010738,2]
[340672431,1729641032066,-150.0,0.00010747,2]
[340672432,1729641032083,-150.0,0.00010749,2]
[340672433,1729641032092,-150.0,0.00010749,2]
[340672434,1729641032101,-150.0,0.00010749,2]
[340672435,1729641032111,-1500.0,0.0001075,2]
[340672436,1729641032120,-150.0,0.00010756,2]
[340672437,1729641032130,-150.0,0.00010759,2]
[340672438,1729641032139,-150.0,0.00010759,2]
[340672439,1729641032149,-150.0,0.0001076,2]
[340672440,1729641032158,-150.0,0.00010769,2]
[340672441,1729641032168,-150.0,0.0001077,2]
[340672442,1729641032177,-150.0,0.00010771,2]
[340672443,1729641032186,-150.0,0.00010771,2]
[340672444,1729641032195,-150.0,0.00010772,2]
[340672445,1729641032204,-1429.1120495,0.00010778,2]
[340672446,1729641032213,-150.0,0.00010786,2]
[340672447,1729641032222,-1500.0,0.00010787,2]
[340672448,1729641032231,-150.0,0.00010788,2]
[340672449,1729641032241,-150.0,0.0001079,2]
[340672450,1729641032250,-1500.0,0.00010791,2]
[340672451,1729641032259,-150.0,0.00010798,2]
[340672452,1729641032268,-150.0,0.00010799,2]
[340672453,1729641032277,-1558.2473,0.000108,2]
[340672454,1729641032287,-144273.8804,0.000108,2]
[340672455,1729641032296,-150.0,0.00010809,2]
[340672456,1729641032305,-150.0,0.00010813,2]
[340672457,1729641032316,-150.0,0.00010816,2]
[340672458,1729641032326,-150.0,0.0001082,2]
[340672459,1729641032336,-150.0,0.0001082,2]
[340672460,1729641032345,-150.0,0.00010832,2]
[340672461,1729641032355,-150.0,0.00010835,2]
[340672462,1729641032364,-150.0,0.00010836,2]
[340672463,1729641032373,-150.0,0.00010836,2]
[340672464,1729641032382,-150.0,0.00010836,2]
[340672465,1729641032391,-150.0,0.00010848,2]
[340672466,1729641032401,-1500.0,0.0001085,2]
[340672467,1729641032411,-150.0,0.00010853,2]
[340672468,1729641032420,-150.0,0.00010857,2]
[340672469,1729641032430,-150.0,0.0001087,2]
[340672470,1729641032439,-150.0,0.00010876,2]
[340672471,1729641032448,-150.0,0.0001088,2]
[340672472,1729641032457,-150.0,0.0001088,2]
[340672473,1729641032466,-150.0,0.00010885,2]
[340672474,1729641032475,-150.0,0.00010886,2]
[340672475,1729641032485,-150.0,0.00010886,2]
[340672476,1729641032494,-150.0,0.00010891,2]
[340672477,1729641032503,-151.85608626,0.00010892,2]
[340672478,1729641032512,-150.0,0.00010893,2]
[340672479,1729641032521,-11851.26751796,0.00010899,2]
[340672480,1729641032530,-500.0,0.000109,2]
[340672481,1729641032540,-158.91630288,0.000109,2]
[340672482,1729641032549,-1046.03303729,0.000109,2]
[340672483,1729641032558,-157.54710302,0.000109,2]
[340672484,1729641032567,-1000.0,0.000109,2]
[340672485,1729641032578,-150.0,0.00010901,2]
[340672486,1729641032587,-150.0,0.00010902,2]
[340672487,1729641032596,-150.0,0.00010905,2]
[340672488,1729641032606,-150.0,0.00010906,2]
[340672489,1729641032615,-840.0,0.00010908,2]
[340672490,1729641032624,-150.0,0.00010912,2]
[340672491,1729641032634,-150.0,0.00010915,2]
[340672492,1729641032643,-150.0,0.00010916,2]
[340672493,1729641032652,-150.0,0.00010917,2]
[340672494,1729641032662,-150.0,0.00010922,2]
[340672495,1729641032670,-150.0,0.00010926,2]
[340672496,1729641032679,-1000.0,0.00010945,2]
[340672497,1729641032689,-1000.0,0.00010945,2]
[340672498,1729641032698,-761.9464,0.00010945,2]
[340672499,1729641032707,-150.0,0.00010947,2]
[340672500,1729641032716,-150.0,0.00010947,2]
[340672501,1729641032726,-150.0,0.00010949,2]
[340672502,1729641032735,-150.0,0.00010951,2]
[340672503,1729641032744,-150.0,0.00010955,2]
[340672504,1729641032753,-150.29,0.00010959,2]
[340672505,1729641032763,-1500.0,0.00010959,2]
[340672506,1729641032772,-250.0,0.00010959,2]
[340672507,1729641032781,-503.61,0.00010959,2]
[340672508,1729641032790,-15565.7600898,0.00010995,2]
[340672509,1729641032799,-5241.8381708,0.00010995,2]
[340672510,1729641032809,-2828.8490908,0.00010995,2]
[340672511,1729641032818,-176.13466539,0.00010999,2]
[340672512,1729641032829,-150.01,0.00010999,2]
[340672513,1729641032838,-513.0,0.00011,2]
[340672514,1729641032848,-374865.80656429,0.00011,2]
[340672515,1729641032860,-14078.21098942,0.00011,2]
[340672516,1729641032871,-15490.7,0.00011,2]
[340672517,1729641032882,-63103.15938284,0.00011,2]
[340672518,1729641032894,-13856.05340148,0.00011,2]
[340672519,1729641032917,-1287.62195801,0.00011,2]
[340672525,1729641037605,-1364.84,0.00011,2]
[340672526,1729641037668,-2268.98623405,0.00011,2]
[340672658,1729641039691,-300.0,0.00011,2]
[340672659,1729641039702,-277.62782763,0.00011,2]
[340672660,1729641039734,-5244.58188863,0.00011,2]
[340672661,1729641039926,-421.66372381,0.00011,2]
[340672662,1729641042622,-379268.82272066,0.00011,2]
[340672663,1729641042632,-150.0,0.00011,2]
[340672664,1729641042641,-200.0,0.00011002,2]
[340672665,1729641042651,-32923.7141141,0.00011038,2]
[340672666,1729641042661,-422.3350845,0.00011233,2]
[340672667,1729641042861,-1459.47,0.00011286,2]
[340672668,1729641042872,-1459.47,0.00011289,2]
[340672669,1729641042882,-1459.47,0.00011292,2]
[340672670,1729641042892,-1459.47,0.00011295,2]
[340672671,1729641042902,-1459.47,0.00011298,2]
[340672672,1729641042912,-1459.47,0.00011301,2]
[340672673,1729641042921,-1459.47,0.00011304,2]
[340672674,1729641042931,-1459.47,0.00011307,2]
[340672675,1729641042941,-1459.47,0.0001131,2]
[340672676,1729641042950,-1459.47,0.00011313,2]
[340672677,1729641042959,-1459.47,0.00011316,2]
[340672678,1729641042968,-1459.47,0.00011319,2]
[340672679,1729641042979,-1459.47,0.00011322,2]
[340672680,1729641042988,-1459.47,0.00011325,2]
[340672681,1729641042997,-1459.47,0.00011328,2]
[340672682,1729641043007,-1459.47,0.00011331,2]
[340672683,1729641043016,-1459.47,0.00011334,2]
[340672684,1729641043025,-1459.47,0.00011337,2]
[340672685,1729641043035,-1459.47,0.0001134,2]
[340672686,1729641043045,-1459.47,0.00011343,2]
[340672688,1729641043054,-341.81,0.00011456,2]
[340672690,1729641043064,-150.29,0.00011507,2]
[340672691,1729641043073,-2751.0,0.00011507,2]
[340672692,1729641043083,-503.61,0.00011507,2]
[340672693,1729641043093,-1046.03303728,0.00011565,2]
[340672694,1729641043103,-150.0,0.00011666,2]
[340672695,1729641043113,-165.87,0.00011674,2]
[340672696,1729641043123,-150.0,0.00011674,2]
[340672697,1729641043133,-150.0,0.00011677,2]
[340672698,1729641043142,-150.0,0.00011689,2]
[340672699,1729641043151,-150.0,0.00011699,2]
[340672700,1729641043161,-150.0,0.00011707,2]
[340672701,1729641043170,-150.0,0.00011713,2]
[340672702,1729641043179,-150.0,0.00011722,2]
[340672703,1729641043189,-150.0,0.00011731,2]
[340672704,1729641043199,-150.0,0.00011734,2]
[340672705,1729641043208,-150.0,0.00011735,2]
[340672706,1729641043217,-150.0,0.00011738,2]
[340672707,1729641043227,-1500.0,0.00011748,2]
[340672708,1729641043236,-150.0,0.00011755,2]
[340672709,1729641043246,-150.0,0.00011769,2]
[340672710,1729641043256,-150.0,0.00011781,2]
[340672711,1729641043266,-1500.0,0.00011788,2]
[340672712,1729641043276,-150.0,0.00011793,2]
[340672713,1729641043285,-150.0,0.00011799,2]
[340672714,1729641043295,-150.0,0.00011807,2]
[340672715,1729641043304,-1500.0,0.00011813,2]
[340672716,1729641043314,-150.0,0.00011829,2]
[340672717,1729641043323,-150.0,0.00011834,2]
[340672718,1729641043334,-150.0,0.00011843,2]
[340672719,1729641043344,-150.0,0.00011852,2]
[340672720,1729641043355,-150.0,0.00011852,2]
[340672721,1729641043364,-273.40614576,0.00011866,2]
[340672722,1729641043376,-272.09254905,0.00011866,2]
[340672723,1729641043385,-150.0,0.00011871,2]
[340672724,1729641043395,-150.0,0.00011875,2]
[340672725,1729641043405,-150.0,0.00011879,2]
[340672726,1729641043415,-150.0,0.00011882,2]
[340672727,1729641043424,-150.0,0.00011903,2]
[340672728,1729641043434,-150.0,0.0001191,2]
[340672729,1729641043447,-150.0,0.00011911,2]
[340672730,1729641043457,-150.0,0.0001193,2]
[340672731,1729641043469,-150.0,0.00011932,2]
[340672732,1729641043479,-250.84,0.00011947,2]
[340672733,1729641043489,-300.0,0.00012,2]
[340672734,1729641043499,-153.41,0.00012033,2]
[340672735,1729641043509,-150.29,0.00012055,2]
[340672736,1729641043519,-503.61,0.00012055,2]
[340672737,1729641043528,-249.951,0.00012099,2]
[340672738,1729641043539,-249.951,0.00012099,2]
[340672739,1729641043549,-249.951,0.00012099,2]
[340672740,1729641043558,-249.951,0.00012099,2]
[340672741,1729641043568,-249.951,0.00012099,2]
[340672742,1729641043578,-249.951,0.00012099,2]
[340672743,1729641043593,-249.951,0.00012099,2]
[340672744,1729641043602,-249.951,0.00012099,2]
[340672745,1729641043612,-249.951,0.00012099,2]
[340672746,1729641043623,-249.951,0.00012099,2]
[340672747,1729641043633,-840.0,0.0001212,2]
[340672748,1729641043642,-26717.0,0.00012132,2]
[340672749,1729641043652,-200.0,0.00012225,2]
[340672750,1729641043662,-1046.03303728,0.00012229,2]
[340672751,1729641043671,-151.0,0.00012329,2]
[340672752,1729641043681,-151.0,0.00012329,2]
[340672753,1729641043691,-151.0,0.00012329,2]
[340672754,1729641043700,-151.0,0.00012329,2]
[340672755,1729641043710,-151.0,0.00012329,2]
[340672756,1729641043720,-151.0,0.00012329,2]
[340672757,1729641043729,-151.0,0.00012329,2]
[340672758,1729641043741,-151.0,0.00012329,2]
[340672759,1729641043751,-151.0,0.00012329,2]
[340672760,1729641043760,-151.0,0.00012329,2]
[340672761,1729641043770,-151.0,0.00012329,2]
[340672762,1729641043779,-151.0,0.00012329,2]
[340672763,1729641043790,-151.0,0.00012329,2]
[340672764,1729641043799,-151.0,0.00012329,2]
[340672765,1729641043810,-155.058124,0.00012329,2]
[340672766,1729641043821,-151.0,0.00012329,2]
[340672767,1729641043831,-151.0,0.00012329,2]
[340672768,1729641043840,-151.0,0.00012329,2]
[340672769,1729641043850,-151.0,0.00012329,2]
[340672770,1729641043859,-151.0,0.00012329,2]
[340672771,1729641043869,-158.173142,0.00012329,2]
[340672772,1729641043878,-151.0,0.00012329,2]
[340672773,1729641043887,-151.0,0.00012329,2]
[340672774,1729641043897,-151.0,0.00012329,2]
[340672775,1729641043906,-151.0,0.00012329,2]
[340672776,1729641043916,-151.0,0.00012329,2]
[340672777,1729641043925,-151.0,0.00012329,2]
[340672778,1729641043935,-151.0,0.00012329,2]
[340672779,1729641043945,-151.0,0.00012329,2]
[340672780,1729641043955,-151.0,0.00012329,2]
[340672781,1729641043964,-153.341769,0.00012329,2]
[340672782,1729641043974,-151.0,0.00012329,2]
[340672783,1729641043983,-151.0,0.00012329,2]
[340672784,1729641043993,-151.0,0.00012329,2]
[340672785,1729641044002,-152.874578,0.00012329,2]
[340672786,1729641044011,-1809.831517,0.00012329,2]
[340672787,1729641044021,-1809.831517,0.00012329,2]
[340672788,1729641044031,-1809.831517,0.00012329,2]
[340672789,1729641044041,-1809.831517,0.00012329,2]
[340672790,1729641044051,-151.0,0.00012329,2]
[340672791,1729641044060,-151.0,0.00012329,2]
[340672792,1729641044070,-151.0,0.00012329,2]
[340672793,1729641044080,-153.41,0.00012544,2]
[340672794,1729641044089,-150.29,0.00012603,2]
[340672795,1729641044100,-503.61,0.00012603,2]
[340672796,1729641044110,-165.87,0.00012646,2]
[340672797,1729641044120,-502.12,0.00012709,2]
[340672798,1729641044130,-341.81,0.00012729,2]
[340672799,1729641044140,-179.99,0.00012893,2]
[340672800,1729641044149,-153.41,0.00013054,2]
[340672801,1729641044159,-150.29,0.00013151,2]
[340672802,1729641044169,-503.61,0.00013151,2]
[340672803,1729641044184,-250.84,0.00013274,2]
[340672804,1729641044194,-840.0,0.00013332,2]
[340672805,1729641044204,-200.0,0.00013447,2]
[340672806,1729641044214,-153.41,0.00013565,2]
[340672807,1729641044223,-339.75,0.00013577,2]
[340672808,1729641044233,-165.87,0.00013619,2]
[340672809,1729641044244,-500.0,0.00013699,2]
[340672810,1729641044254,-500.0,0.00013699,2]
[340672811,1729641044264,-500.0,0.00013699,2]
[340672812,1729641044274,-500.0,0.00013699,2]
[340672813,1729641044284,-500.0,0.00013699,2]
[340672814,1729641044293,-208.64733739,0.00013699,2]
[340672815,1729641044303,-200.0,0.00013699,2]
[340672816,1729641044314,-500.0,0.00013699,2]
[340672817,1729641044324,-1741.95,0.000137,2]
[340672818,1729641044335,-1741.95,0.000137,2]
[340672819,1729641044345,-1741.95,0.000137,2]
[340672820,1729641044355,-1741.95,0.000137,2]
[340672821,1729641044365,-1741.95,0.000137,2]
[340672822,1729641044374,-151.0,0.000138,2]
[340672823,1729641044383,-165.11538,0.000138,2]
[340672824,1729641044393,-151.0,0.000138,2]
[340672825,1729641044403,-151.0,0.000138,2]
[340672826,1729641044413,-365316.46266,0.000138,2]
[340672827,1729641044423,-151.0,0.000138,2]
[340672828,1729641044433,-1809.831517,0.000138,2]
[340672829,1729641044442,-1809.831517,0.000138,2]
[340672830,1729641044452,-500.0,0.00013873,2]
[340672831,1729641044462,-151.0,0.000139,2]
[340672832,1729641044473,-151.0,0.000139,2]
[340672833,1729641044482,-151.0,0.000139,2]
[340672834,1729641044491,-306577.007531,0.000139,2]
[340672835,1729641044501,-151.0,0.000139,2]
[340672836,1729641044510,-1809.831517,0.000139,2]
[340672837,1729641044519,-1809.831517,0.000139,2]
[340672838,1729641044529,-350.0,0.00014,2]
[340672839,1729641044539,-341.81,0.00014002,2]
[340672840,1729641044549,-153.41,0.00014076,2]
[340672841,1729641044559,-204.4232328,0.00014438,2]
[340672842,1729641044569,-500.0,0.00014438,2]
[340672843,1729641044580,-510.01751137,0.00014438,2]
[340672844,1729641044590,-5126.80909455,0.000145,2]
[340672845,1729641044600,-1834.23455162,0.000145,2]
[340672846,1729641044611,-840.0,0.00014544,2]
[340672847,1729641044625,-180.17,0.00014551,2]
[340672848,1729641044635,-153.41,0.00014586,2]
[340672849,1729641044645,-165.87,0.00014592,2]
[340672850,1729641044654,-250.84,0.00014602,2]
[340672851,1729641044665,-200.0,0.0001467,2]
[340672852,1729641044675,-502.12,0.00014954,2]
[340672853,1729641044686,-500.0,0.00015,3]
[340672854,1729641044697,-500.0,0.00015,3]
[340672855,1729641044707,-392.0,0.00015,2]
[340672856,1729641044718,-164.0,0.00015,2]
[340672857,1729641044729,-510.00505378,0.00015,2]
[340672858,1729641044740,-1521.0,0.00015,2]
[340672859,1729641044750,-300.0,0.00015068,2]
[340672860,1729641044761,-341.81,0.00015274,2]
[340672861,1729641044772,-169.17,0.00015342,2]
[340672862,1729641044783,-179.57,0.00015342,2]
[340672863,1729641044793,-154.23,0.00015342,2]
[340672864,1729641044804,-156.23,0.00015342,2]
[340672865,1729641044815,-183.39,0.00015342,2]
[340672866,1729641044826,-250.84,0.00015929,2]
[340672867,1729641044837,-400.0,0.00016,2]
[340672868,1729641044848,-300.0,0.00016438,2]
[340672869,1729641044858,-150.0,0.00016438,2]
[340672870,1729641044870,-250.0,0.00017123,2]
[340672871,1729641044880,-502.12,0.00017199,2]
[340672872,1729641044891,-11851.26751796,0.00017367,2]
[340672873,1729641044902,-150.308,0.00017688,2]
[340672874,1729641044914,-150.0,0.00017688,2]
[340672875,1729641044925,-151.0,0.00017688,2]
[340672876,1729641044935,-1246.0,0.00017688,2]
[340672877,1729641044945,-813.0,0.00017688,2]
[340672878,1729641044955,-560.293,0.00017688,2]
[340672879,1729641044966,-555.95,0.00017688,2]
[340672880,1729641044976,-663.725,0.00017688,2]
[340672881,1729641044986,-624.22138056,0.00017688,2]
[340672882,1729641045002,-311.77861944,0.00017688,2]
[340672883,1729641045012,-150.0,0.00017688,2]
[340672884,1729641045025,-1910.0,0.00017688,2]
[340672885,1729641045036,-3360.0,0.00017688,2]
[340672886,1729641045046,-810.0,0.00017688,2]
[340672887,1729641045057,-151.0,0.00017688,2]
[340672888,1729641045067,-151.0,0.00017688,2]
[340672889,1729641045078,-1809.831517,0.00017688,2]
[340672890,1729641045089,-1809.831517,0.00017688,2]
[340672891,1729641045099,-250.0,0.00017688,2]
[340672892,1729641045109,-1151.0,0.00017688,2]
[340672893,1729641045119,-5890.0,0.00017688,2]
[340672894,1729641045130,-150.0,0.00017688,2]
[340672895,1729641045140,-13543.0,0.00017688,2]
[340672896,1729641045150,-220.0,0.00017688,2]
[340672897,1729641045160,-272.421,0.00017688,2]
[340672898,1729641045170,-350.0,0.00017808,2]
[340672899,1729641045181,-450.0,0.00018,2]
[340672900,1729641045192,-180.0,0.00018082,2]
[340672901,1729641045203,-225.0,0.000183,7]
[340672902,1729641045214,-198.40732055,0.00018493,2]
[340672903,1729641045224,-503.039576,0.00019,2]
[340672904,1729641045235,-200.0,0.00019178,2]
[340672905,1729641045246,-180.19,0.00019178,2]
[340672906,1729641045255,-502.12,0.00019444,2]
[340672907,1729641045266,-500.0,0.0002,2]
[340672908,1729641045277,-500.0,0.0002,2]
[340672909,1729641045287,-464.0,0.00020685,2]
[340672910,1729641045298,-150.0,0.00020688,2]
[340672911,1729641045307,-151.0,0.00020688,2]
[340672912,1729641045318,-1246.0,0.00020688,2]
[340672913,1729641045328,-813.0,0.00020688,2]
[340672914,1729641045340,-560.0,0.00020688,2]
[340672915,1729641045351,-450.0,0.00020688,2]
[340672916,1729641045361,-556.0,0.00020688,2]
[340672917,1729641045370,-936.0,0.00020688,2]
[340672919,1729641045381,-1910.0,0.00020688,2]
[340672921,1729641045391,-3360.0,0.00020688,2]
[340672923,1729641045400,-810.0,0.00020688,2]
[340672925,1729641045410,-1809.831517,0.00020688,2]
[340672927,1729641045421,-1809.831517,0.00020688,2]
[340672928,1729641045431,-1151.0,0.00020688,2]
[340672929,1729641045441,-150.0,0.00020688,2]
[340672930,1729641045451,-5890.0,0.00020688,2]
[340672931,1729641045461,-13543.0,0.00020688,2]
[340672932,1729641045471,-502.12,0.00021689,2]
[340672933,1729641045481,-169.17,0.00021745,2]
[340672934,1729641045491,-758.47,0.00021918,2]
[340672935,1729641045501,-955.25,0.00021918,2]
[340672936,1729641045511,-550.0,0.00022,2]
[340672937,1729641045521,-509.63,0.00023,7]
[340672938,1729641045531,-151.0,0.00023,7]
[340672939,1729641045542,-151.0,0.00023,7]
[340672940,1729641045552,-191.0,0.000233,2]
[340672941,1729641045562,-187.5,0.000235,14]
[340672942,1729641045572,-1246.0,0.00023688,2]
[340672943,1729641045582,-813.0,0.00023688,2]
[340672944,1729641045592,-560.0,0.00023688,2]
[340672945,1729641045604,-450.0,0.00023688,2]
[340672946,1729641045614,-556.0,0.00023688,2]
[340672947,1729641045773,-936.0,0.00023688,2]
[340672948,1729641045784,-1910.0,0.00023688,2]
[340672949,1729641045795,-3360.0,0.00023688,2]
[340672950,1729641045806,-810.0,0.00023688,2]
[340672951,1729641045816,-1151.0,0.00023688,2]
[340672952,1729641045827,-150.0,0.00023688,2]
[340672953,1729641045840,-5890.0,0.00023688,2]
[340672955,1729641045850,-13543.0,0.00023688,2]
[340672957,1729641045861,-167.0,0.00023732,2]
[340672958,1729641045871,-167.05,0.00023732,2]
[340672959,1729641045880,-167.25,0.00023732,2]
[340672960,1729641045890,-167.01,0.00023732,2]
[340672961,1729641045900,-151.0,0.00023856,7]
[340672962,1729641045910,-1809.831517,0.00023933,7]
[340672963,1729641045920,-1809.831517,0.00023933,7]
[340672964,1729641045930,-11851.26751796,0.00023933,2]
[340672965,1729641045940,-502.12,0.00023934,2]
[340672966,1729641045950,-600.0,0.00024,2]
[340672967,1729641045960,-375.0,0.00024657,2]
[340672968,1729641045969,-1000.0,0.00024658,2]
[340672969,1729641045979,-151.0,0.00024658,7]
[340672970,1729641045989,-151.0,0.00024658,7]
[340672971,1729641045999,-167.05,0.00024712,2]
[340672972,1729641046008,-158.84,0.00024877,30]
[340672973,1729641046018,-167.05,0.00025691,2]
[340672974,1729641046028,-650.0,0.00026,2]
[340672975,1729641046038,-502.12,0.00026179,2]
[340672976,1729641046048,-14281.7516849,0.0002667,2]
[340672977,1729641046057,-167.05,0.0002667,2]
[340672978,1729641046066,-1246.0,0.00026688,2]
[340672979,1729641046076,-813.0,0.00026688,2]
[340672980,1729641046087,-560.0,0.00026688,2]
[340672981,1729641046096,-450.0,0.00026688,2]
[340672982,1729641046106,-556.0,0.00026688,2]
[340672983,1729641046115,-934.0,0.00026688,2]
[340672984,1729641046125,-1910.0,0.00026688,2]
[340672985,1729641046134,-3360.0,0.00026688,2]
[340672986,1729641046144,-810.0,0.00026688,2]
[340672987,1729641046153,-151.0,0.00026688,7]
[340672988,1729641046162,-151.0,0.00026688,7]
[340672989,1729641046171,-1809.831517,0.00026688,7]
[340672990,1729641046180,-1809.831517,0.00026688,7]
[340672991,1729641046190,-822.144,0.00026688,2]
[340672992,1729641046200,-150.0,0.00026688,2]
[340672993,1729641046209,-5890.0,0.00026688,2]
[340672994,1729641046219,-13543.0,0.00026688,2]
[340672995,1729641046228,-500.0,0.0002701,10]
[340672996,1729641046238,-500.0,0.0002701,10]
[340672997,1729641046247,-500.0,0.0002701,10]
[340672998,1729641046258,-500.0,0.0002701,10]
[340672999,1729641046269,-500.0,0.0002701,10]
[340673000,1729641046278,-500.0,0.0002701,10]
[340673001,1729641046287,-500.0,0.0002701,10]
[340673002,1729641046297,-500.0,0.0002701,10]
[340673003,1729641046306,-151.0,0.00027397,7]
[340673004,1729641046316,-750.0,0.00027397,2]
[340673005,1729641046325,-1453.24,0.00027397,60]
[340673006,1729641046337,-152.28,0.00027397,2]
[340673007,1729641046346,-1000.0,0.00027397,7]
[340673008,1729641046355,-180.19,0.00027397,2]
[340673009,1729641046365,-167.25,0.00027649,2]
[340673010,1729641046375,-167.05,0.00027649,2]
[340673011,1729641046385,-700.0,0.00028,2]
[340673012,1729641046394,-169.17,0.00028147,2]
[340673013,1729641046404,-502.12,0.00028424,2]
[340673014,1729641046413,-191.73685304,0.000288,2]
[340673015,1729641046423,-152.28,0.0002911,2]
[340673016,1729641046432,-1103.468,0.00029688,2]
[340673017,1729641046441,-497.90452565,0.00029688,2]
[340673018,1729641046805,-315.09547435,0.00029688,2]
[340673019,1729641046815,-560.0,0.00029688,2]
[340673020,1729641046825,-450.0,0.00029688,2]
[340673021,1729641046835,-1910.0,0.00029688,2]
[340673022,1729641046845,-3360.0,0.00029688,2]
[340673023,1729641046854,-810.0,0.00029688,2]
[340673024,1729641046864,-150.0,0.00029688,2]
[340673025,1729641046874,-5890.0,0.00029688,2]
[340673026,1729641046884,-13543.0,0.00029688,2]
[340673027,1729641046894,-150.0,0.00029934,2]
[340673028,1729641046903,-150.0,0.00029934,2]
[340673029,1729641046913,-150.0,0.00029934,2]
[340673030,1729641046922,-150.0,0.00029934,2]
[340673031,1729641046932,-150.0,0.00029934,2]
[340673032,1729641046943,-750.0,0.0003,2]
[340673033,1729641046953,-154.13975166,0.0003,2]
[340673034,1729641046963,-1809.831517,0.0003,7]
[340673035,1729641046972,-1809.831517,0.0003,7]
[340673036,1729641046982,-750.0,0.00030136,2]